[Event "Titled Tuesday Blitz December 27 Early 2022"]
[White "Kabanov, Nikolai"]
[Black "Prieto Aranguren, Alain"]
[WhiteFideId "4127820"]
[BlackFideId "2268906"]
[WhiteElo "2429"]
[BlackElo "2258"]
[Result "0-1"]
[Round "06"]
[TimeControl "180+2"]
[Date "2022.12.27"]
[WhiteClock "0:00:02"]
[BlackClock "0:00:25"]

1. e4 {[%clk 0:02:59]}  c6 {[%clk 0:02:59]} 2. d4 {[%clk 0:02:57]}  d5 {[%clk 0:02:59]} 3. exd5 {[%clk 0:02:58]}  cxd5 {[%clk 0:02:59]} 4. Nf3 {[%clk 0:02:58]}  Nc6 {[%clk 0:02:58]} 5. Ne5 {[%clk 0:02:58]}  Qb6 {[%clk 0:02:55]} 6. Nc3 {[%clk 0:02:41]}  Nf6 {[%clk 0:02:51]} 7. Bb5 {[%clk 0:02:40]}  Bd7 {[%clk 0:02:46]} 8. Nxd7 {[%clk 0:02:39]}  Kxd7 {[%clk 0:02:44]} 9. O-O {[%clk 0:02:34]}  e6 {[%clk 0:02:43]} 10. Bf4 {[%clk 0:02:21]}  Bb4 {[%clk 0:02:41]} 11. a4 {[%clk 0:02:11]}  a6 {[%clk 0:02:39]} 12. Bd3 {[%clk 0:02:09]}  Qxd4 {[%clk 0:02:33]} 13. Ne2 {[%clk 0:02:05]}  Qa7 {[%clk 0:02:24]} 14. c3 {[%clk 0:02:03]}  Bc5 {[%clk 0:02:19]} 15. b4 {[%clk 0:02:01]}  Bd6 {[%clk 0:02:17]} 16. b5 {[%clk 0:01:55]}  Ne5 {[%clk 0:02:13]} 17. Nd4 {[%clk 0:01:31]}  Nxd3 {[%clk 0:02:11]} 18. Bxd6 {[%clk 0:01:30]}  Nb2 {[%clk 0:02:00]} 19. Qb3 {[%clk 0:01:25]}  Kxd6 {[%clk 0:01:54]} 20. Qxb2 {[%clk 0:01:18]}  Qc5 {[%clk 0:01:50]} 21. Rfe1 {[%clk 0:01:05]}  Ne4 {[%clk 0:01:48]} 22. Re3 {[%clk 0:01:02]}  axb5 {[%clk 0:01:45]} 23. Nxb5+ {[%clk 0:00:59]}  Ke7 {[%clk 0:01:41]} 24. Nd4 {[%clk 0:00:54]}  Rhc8 {[%clk 0:01:30]} 25. Qxb7+ {[%clk 0:00:19]}  Kf8 {[%clk 0:01:30]} 26. Rf3 {[%clk 0:00:16]}  Nf6 {[%clk 0:01:29]} 27. a5 {[%clk 0:00:12]}  Rab8 {[%clk 0:01:28]} 28. Qa6 {[%clk 0:00:11]}  e5 {[%clk 0:01:22]} 29. Nf5 {[%clk 0:00:10]}  e4 {[%clk 0:01:15]} 30. Rg3 {[%clk 0:00:10]}  Ra8 {[%clk 0:00:56]} 31. Qd6+ {[%clk 0:00:10]}  Qxd6 {[%clk 0:00:55]} 32. Nxd6 {[%clk 0:00:11]}  Rc5 {[%clk 0:00:51]} 33. a6 {[%clk 0:00:10]}  Rc6 {[%clk 0:00:51]} 34. Nf5 {[%clk 0:00:10]}  Rcxa6 {[%clk 0:00:50]} 35. Rxa6 {[%clk 0:00:11]}  Rxa6 {[%clk 0:00:50]} 36. h3 {[%clk 0:00:09]}  g6 {[%clk 0:00:47]} 37. Nd4 {[%clk 0:00:09]}  Ra3 {[%clk 0:00:45]} 38. Re3 {[%clk 0:00:09]}  Ke7 {[%clk 0:00:42]} 39. f3 {[%clk 0:00:09]}  h5 {[%clk 0:00:38]} 40. g4 {[%clk 0:00:08]}  hxg4 {[%clk 0:00:37]} 41. hxg4 {[%clk 0:00:08]}  g5 {[%clk 0:00:34]} 42. Nf5+ {[%clk 0:00:03]}  Ke6 {[%clk 0:00:32]} 43. Ng3 {[%clk 0:00:03]}  Ke5 {[%clk 0:00:30]} 44. fxe4 {[%clk 0:00:02]}  Kf4 {[%clk 0:00:25]} 0-1


[Site "https://www.chess.com"]

[Event "Titled Tuesday Blitz December 27 Early 2022"]
[White "Kazancev, Valerij M"]
[Black "Mills, Morgen"]
[WhiteFideId "4179609"]
[BlackFideId "2013304"]
[WhiteElo "2313"]
[BlackElo "2009"]
[Result "1-0"]
[Round "06"]
[TimeControl "180+2"]
[Date "2022.12.27"]
[WhiteClock "0:00:35"]
[BlackClock "0:00:12"]

1. c4 {[%clk 0:02:57]}  e6 {[%clk 0:02:58]} 2. Nf3 {[%clk 0:02:56]}  d5 {[%clk 0:02:59]} 3. g3 {[%clk 0:02:57]}  Nf6 {[%clk 0:02:51]} 4. Bg2 {[%clk 0:02:58]}  Be7 {[%clk 0:02:49]} 5. O-O {[%clk 0:02:59]}  O-O {[%clk 0:02:50]} 6. b3 {[%clk 0:02:59]}  c5 {[%clk 0:02:46]} 7. e3 {[%clk 0:03:00]}  Nc6 {[%clk 0:02:47]} 8. Bb2 {[%clk 0:03:00]}  b6 {[%clk 0:02:41]} 9. Qe2 {[%clk 0:02:58]}  Bb7 {[%clk 0:02:42]} 10. Rd1 {[%clk 0:02:58]}  dxc4 {[%clk 0:02:33]} 11. bxc4 {[%clk 0:02:58]}  Na5 {[%clk 0:02:31]} 12. d3 {[%clk 0:02:56]}  Qc7 {[%clk 0:02:23]} 13. Nc3 {[%clk 0:02:55]}  Rad8 {[%clk 0:02:19]} 14. Rac1 {[%clk 0:02:54]}  Qc8 {[%clk 0:02:08]} 15. h3 {[%clk 0:02:53]}  h6 {[%clk 0:02:07]} 16. e4 {[%clk 0:02:37]}  Qa8 {[%clk 0:02:01]} 17. Ne5 {[%clk 0:02:27]}  Nc6 {[%clk 0:01:53]} 18. f4 {[%clk 0:02:04]}  Nd7 {[%clk 0:01:52]} 19. Nf3 {[%clk 0:02:01]}  Nd4 {[%clk 0:01:28]} 20. Nxd4 {[%clk 0:02:01]}  cxd4 {[%clk 0:01:29]} 21. Nb5 {[%clk 0:01:57]}  e5 {[%clk 0:01:18]} 22. Kh1 {[%clk 0:01:51]}  Bc5 {[%clk 0:01:15]} 23. Nc7 {[%clk 0:01:46]}  Qc8 {[%clk 0:01:11]} 24. Nd5 {[%clk 0:01:46]}  Bxd5 {[%clk 0:01:06]} 25. cxd5 {[%clk 0:01:47]}  Qa6 {[%clk 0:00:57]} 26. Bf3 {[%clk 0:01:38]}  Rfe8 {[%clk 0:00:41]} 27. Bg4 {[%clk 0:01:38]}  Nf8 {[%clk 0:00:37]} 28. Rc4 {[%clk 0:01:32]}  Qxa2 {[%clk 0:00:32]} 29. Ra1 {[%clk 0:01:30]}  Qb3 {[%clk 0:00:33]} 30. Rxa7 {[%clk 0:01:30]}  Ra8 {[%clk 0:00:32]} 31. Rxa8 {[%clk 0:01:15]}  Rxa8 {[%clk 0:00:33]} 32. fxe5 {[%clk 0:01:15]}  Ra2 {[%clk 0:00:32]} 33. Rc2 {[%clk 0:01:15]}  Ba3 {[%clk 0:00:32]} 34. e6 {[%clk 0:01:09]}  Rxb2 {[%clk 0:00:27]} 35. Rxb2 {[%clk 0:01:06]}  Bxb2 {[%clk 0:00:17]} 36. e7 {[%clk 0:01:02]}  Qb5 {[%clk 0:00:15]} 37. d6 {[%clk 0:00:38]}  Ng6 {[%clk 0:00:12]} 38. d7 {[%clk 0:00:35]} 1-0


[Site "https://www.chess.com"]

[Event "Titled Tuesday Blitz December 27 Early 2022"]
[White "Kilic, Eray"]
[Black "Mathieu, Phileas"]
[WhiteFideId "44517173"]
[BlackFideId "36048410"]
[WhiteElo "2414"]
[BlackElo "2374"]
[Result "1-0"]
[Round "06"]
[TimeControl "180+2"]
[Date "2022.12.27"]
[WhiteClock "0:00:12"]
[BlackClock "0:00:08"]

1. e4 {[%clk 0:03:00]}  c5 {[%clk 0:02:58]} 2. Nf3 {[%clk 0:03:00]}  e6 {[%clk 0:02:57]} 3. d4 {[%clk 0:02:57]}  cxd4 {[%clk 0:02:58]} 4. Nxd4 {[%clk 0:02:57]}  Nc6 {[%clk 0:02:58]} 5. Nc3 {[%clk 0:02:57]}  a6 {[%clk 0:02:58]} 6. g3 {[%clk 0:02:57]}  Qc7 {[%clk 0:02:58]} 7. Bg2 {[%clk 0:02:54]}  Bc5 {[%clk 0:02:58]} 8. Nb3 {[%clk 0:02:52]}  Be7 {[%clk 0:02:50]} 9. O-O {[%clk 0:02:52]}  b5 {[%clk 0:02:49]} 10. Re1 {[%clk 0:02:43]}  Bb7 {[%clk 0:02:50]} 11. Nd5 {[%clk 0:02:19]}  exd5 {[%clk 0:02:13]} 12. exd5 {[%clk 0:02:19]}  Kf8 {[%clk 0:02:14]} 13. Bf4 {[%clk 0:02:12]}  d6 {[%clk 0:01:59]} 14. dxc6 {[%clk 0:02:11]}  Bxc6 {[%clk 0:01:59]} 15. Bxc6 {[%clk 0:02:09]}  Qxc6 {[%clk 0:01:59]} 16. Nd4 {[%clk 0:02:09]}  Qd5 {[%clk 0:01:57]} 17. c3 {[%clk 0:01:43]}  g5 {[%clk 0:01:56]} 18. Bd2 {[%clk 0:01:37]}  Rc8 {[%clk 0:01:44]} 19. Qh5 {[%clk 0:01:31]}  h6 {[%clk 0:01:37]} 20. Qh3 {[%clk 0:01:04]}  Rc7 {[%clk 0:01:37]} 21. Rad1 {[%clk 0:00:56]}  Nf6 {[%clk 0:01:34]} 22. Nf5 {[%clk 0:00:42]}  Qf3 {[%clk 0:01:21]} 23. Bxg5 {[%clk 0:00:35]}  Ng4 {[%clk 0:01:01]} 24. Bxe7+ {[%clk 0:00:09]}  Rxe7 {[%clk 0:01:00]} 25. Nxe7 {[%clk 0:00:10]}  Qxf2+ {[%clk 0:00:38]} 26. Kh1 {[%clk 0:00:10]}  Qf3+ {[%clk 0:00:35]} 27. Kg1 {[%clk 0:00:09]}  Qf2+ {[%clk 0:00:29]} 28. Kh1 {[%clk 0:00:08]}  Qf3+ {[%clk 0:00:24]} 29. Qg2 {[%clk 0:00:08]}  Nf2+ {[%clk 0:00:23]} 30. Kg1 {[%clk 0:00:09]}  Qxg2+ {[%clk 0:00:24]} 31. Kxg2 {[%clk 0:00:10]}  Nxd1 {[%clk 0:00:24]} 32. Nf5 {[%clk 0:00:06]}  Nxb2 {[%clk 0:00:21]} 33. Nxd6 {[%clk 0:00:06]}  Kg7 {[%clk 0:00:16]} 34. Re7 {[%clk 0:00:06]}  Rd8 {[%clk 0:00:08]} 35. Nxf7 {[%clk 0:00:03]}  Rd3 {[%clk 0:00:08]} 36. Ne5+ {[%clk 0:00:02]}  Kf6 {[%clk 0:00:06]} 37. Nxd3 {[%clk 0:00:03]}  Nxd3 {[%clk 0:00:07]} 38. Ra7 {[%clk 0:00:04]}  Nc5 {[%clk 0:00:05]} 39. h4 {[%clk 0:00:05]}  Ke5 {[%clk 0:00:05]} 40. Kh3 {[%clk 0:00:06]}  Na4 {[%clk 0:00:05]} 41. g4 {[%clk 0:00:07]}  Nxc3 {[%clk 0:00:05]} 42. Rxa6 {[%clk 0:00:07]}  Kf4 {[%clk 0:00:06]} 43. Ra3 {[%clk 0:00:07]}  b4 {[%clk 0:00:05]} 44. Rb3 {[%clk 0:00:07]}  Nd5 {[%clk 0:00:05]} 45. Rb1 {[%clk 0:00:06]}  Kf3 {[%clk 0:00:04]} 46. Rf1+ {[%clk 0:00:06]}  Ke2 {[%clk 0:00:04]} 47. Rf8 {[%clk 0:00:06]}  Ke3 {[%clk 0:00:04]} 48. g5 {[%clk 0:00:06]}  hxg5 {[%clk 0:00:04]} 49. hxg5 {[%clk 0:00:07]}  b3 {[%clk 0:00:04]} 50. axb3 {[%clk 0:00:07]}  Ne7 {[%clk 0:00:04]} 51. Re8 {[%clk 0:00:08]}  Kf4 {[%clk 0:00:04]} 52. Rxe7 {[%clk 0:00:09]}  Kxg5 {[%clk 0:00:05]} 53. Rf7 {[%clk 0:00:09]}  Kg6 {[%clk 0:00:05]} 54. Rf1 {[%clk 0:00:09]}  Kg5 {[%clk 0:00:06]} 55. b4 {[%clk 0:00:10]}  Kh5 {[%clk 0:00:07]} 56. b5 {[%clk 0:00:11]}  Kg5 {[%clk 0:00:08]} 57. b6 {[%clk 0:00:12]} 1-0


[Site "https://www.chess.com"]

[Event "Titled Tuesday Blitz December 27 Early 2022"]
[White "Kowalczyk, Pawel"]
[Black "Gnechko, Ruslan"]
[WhiteFideId "1130641"]
[BlackFideId "14135868"]
[WhiteElo "2332"]
[BlackElo "2132"]
[Result "0-1"]
[Round "06"]
[TimeControl "180+2"]
[Date "2022.12.27"]
[WhiteClock "0:01:42"]
[BlackClock "0:00:43"]

1. e4 {[%clk 0:03:00]}  c5 {[%clk 0:02:58]} 2. Ne2 {[%clk 0:03:00]}  g6 {[%clk 0:02:58]} 3. g3 {[%clk 0:03:01]}  Bg7 {[%clk 0:02:58]} 4. Bg2 {[%clk 0:03:02]}  Nc6 {[%clk 0:02:58]} 5. O-O {[%clk 0:03:02]}  e6 {[%clk 0:02:59]} 6. c3 {[%clk 0:03:03]}  Nge7 {[%clk 0:02:59]} 7. d4 {[%clk 0:03:03]}  cxd4 {[%clk 0:02:59]} 8. cxd4 {[%clk 0:03:04]}  d5 {[%clk 0:02:59]} 9. e5 {[%clk 0:03:04]}  O-O {[%clk 0:02:58]} 10. Nbc3 {[%clk 0:03:04]}  b6 {[%clk 0:02:58]} 11. h4 {[%clk 0:03:05]}  h5 {[%clk 0:02:58]} 12. Bg5 {[%clk 0:03:03]}  Ba6 {[%clk 0:02:58]} 13. Re1 {[%clk 0:03:03]}  Rc8 {[%clk 0:02:57]} 14. Qd2 {[%clk 0:03:03]}  Na5 {[%clk 0:02:56]} 15. b3 {[%clk 0:03:03]}  Qd7 {[%clk 0:02:52]} 16. Bxe7 {[%clk 0:03:01]}  Qxe7 {[%clk 0:02:52]} 17. Nf4 {[%clk 0:03:00]}  Kh7 {[%clk 0:02:50]} 18. Rac1 {[%clk 0:02:57]}  Bh6 {[%clk 0:02:50]} 19. Bf1 {[%clk 0:02:52]}  Bxf1 {[%clk 0:02:49]} 20. Kxf1 {[%clk 0:02:53]}  Rc6 {[%clk 0:02:48]} 21. Nce2 {[%clk 0:02:51]}  Rfc8 {[%clk 0:02:47]} 22. Rxc6 {[%clk 0:02:51]}  Rxc6 {[%clk 0:02:47]} 23. Rc1 {[%clk 0:02:51]}  Qc7 {[%clk 0:02:42]} 24. Rxc6 {[%clk 0:02:51]}  Qxc6 {[%clk 0:02:43]} 25. Qb4 {[%clk 0:02:51]}  Kg8 {[%clk 0:02:32]} 26. Qe7 {[%clk 0:02:51]}  Qb7 {[%clk 0:01:55]} 27. Qe8+ {[%clk 0:02:49]}  Kg7 {[%clk 0:01:51]} 28. Kg2 {[%clk 0:02:49]}  Nc6 {[%clk 0:01:50]} 29. Nh3 {[%clk 0:02:44]}  Ne7 {[%clk 0:01:45]} 30. Ng5 {[%clk 0:02:43]}  Bxg5 {[%clk 0:01:44]} 31. hxg5 {[%clk 0:02:44]}  Nf5 {[%clk 0:01:44]} 32. Qd8 {[%clk 0:02:34]}  Qa6 {[%clk 0:01:39]} 33. Nf4 {[%clk 0:02:32]}  Nxd4 {[%clk 0:01:27]} 34. Qf6+ {[%clk 0:02:31]}  Kg8 {[%clk 0:01:27]} 35. Nxg6 {[%clk 0:02:31]}  fxg6 {[%clk 0:01:26]} 36. Qxg6+ {[%clk 0:02:32]}  Kf8 {[%clk 0:01:27]} 37. Qf6+ {[%clk 0:02:32]}  Ke8 {[%clk 0:01:26]} 38. g6 {[%clk 0:02:32]}  Qe2 {[%clk 0:01:19]} 39. Qf7+ {[%clk 0:02:29]}  Kd8 {[%clk 0:01:19]} 40. g7 {[%clk 0:02:28]}  Qe4+ {[%clk 0:01:19]} 41. f3 {[%clk 0:02:10]}  Qe2+ {[%clk 0:01:17]} 42. Kh3 {[%clk 0:02:09]}  Qf1+ {[%clk 0:01:10]} 43. Kh4 {[%clk 0:02:08]}  Nxf3+ {[%clk 0:00:50]} 44. Kxh5 {[%clk 0:01:42]}  Qh3+ {[%clk 0:00:48]} 45. Kg6 {[%clk 0:01:41]}  Nxe5+ {[%clk 0:00:47]} 46. Kf6 {[%clk 0:01:42]}  Qf5# {[%clk 0:00:43]} 0-1


[Site "https://www.chess.com"]

[Event "Titled Tuesday Blitz December 27 Early 2022"]
[White "Kravtsiv, Martyn"]
[Black "Turzo, Attila"]
[WhiteFideId "14113147"]
[BlackFideId "704954"]
[WhiteElo "2598"]
[BlackElo "2279"]
[Result "0-1"]
[Round "06"]
[TimeControl "180+2"]
[Date "2022.12.27"]
[WhiteClock "0:00:03"]
[BlackClock "0:00:04"]

1. b3 {[%clk 0:03:00]}  d5 {[%clk 0:02:53]} 2. Bb2 {[%clk 0:03:01]}  e6 {[%clk 0:02:54]} 3. Nf3 {[%clk 0:02:59]}  Nf6 {[%clk 0:02:54]} 4. c4 {[%clk 0:02:59]}  Be7 {[%clk 0:02:52]} 5. e3 {[%clk 0:02:59]}  O-O {[%clk 0:02:53]} 6. Be2 {[%clk 0:02:58]}  c5 {[%clk 0:02:50]} 7. O-O {[%clk 0:02:54]}  b6 {[%clk 0:02:50]} 8. cxd5 {[%clk 0:02:53]}  Nxd5 {[%clk 0:02:48]} 9. d4 {[%clk 0:02:53]}  Bb7 {[%clk 0:02:46]} 10. dxc5 {[%clk 0:02:52]}  Bxc5 {[%clk 0:02:46]} 11. Nbd2 {[%clk 0:02:52]}  Nd7 {[%clk 0:02:43]} 12. Ne4 {[%clk 0:02:50]}  Be7 {[%clk 0:02:41]} 13. Rc1 {[%clk 0:02:49]}  Rc8 {[%clk 0:02:41]} 14. Qd4 {[%clk 0:02:48]}  N7f6 {[%clk 0:02:16]} 15. g4 {[%clk 0:02:46]}  Nf4 {[%clk 0:01:47]} 16. exf4 {[%clk 0:02:24]}  Qxd4 {[%clk 0:01:43]} 17. Nxd4 {[%clk 0:02:23]}  Bxe4 {[%clk 0:01:38]} 18. Ba6 {[%clk 0:02:12]}  Rxc1 {[%clk 0:01:30]} 19. Rxc1 {[%clk 0:02:13]}  Bd6 {[%clk 0:01:21]} 20. f3 {[%clk 0:02:06]}  Bd5 {[%clk 0:01:15]} 21. f5 {[%clk 0:02:03]}  e5 {[%clk 0:01:10]} 22. Nb5 {[%clk 0:02:02]}  Bc5+ {[%clk 0:01:10]} 23. Kg2 {[%clk 0:01:49]}  Nxg4 {[%clk 0:01:08]} 24. Kg3 {[%clk 0:01:30]}  Ne3 {[%clk 0:01:04]} 25. Bxe5 {[%clk 0:01:30]}  Nxf5+ {[%clk 0:01:01]} 26. Kg4 {[%clk 0:01:31]}  Ne3+ {[%clk 0:00:54]} 27. Kg3 {[%clk 0:01:30]}  f6 {[%clk 0:00:49]} 28. Bf4 {[%clk 0:01:25]}  g5 {[%clk 0:00:42]} 29. Bxe3 {[%clk 0:01:15]}  Bxe3 {[%clk 0:00:43]} 30. Rd1 {[%clk 0:01:14]}  Bf4+ {[%clk 0:00:32]} 31. Kf2 {[%clk 0:01:14]}  Be6 {[%clk 0:00:26]} 32. Nxa7 {[%clk 0:01:13]}  Ra8 {[%clk 0:00:24]} 33. Bc8 {[%clk 0:00:59]}  Bxc8 {[%clk 0:00:14]} 34. Rd8+ {[%clk 0:00:59]}  Kg7 {[%clk 0:00:13]} 35. Nxc8 {[%clk 0:00:59]}  Rxa2+ {[%clk 0:00:10]} 36. Kf1 {[%clk 0:00:59]}  Rxh2 {[%clk 0:00:09]} 37. Nxb6 {[%clk 0:00:59]}  Rb2 {[%clk 0:00:08]} 38. Rd7+ {[%clk 0:00:57]}  Kg6 {[%clk 0:00:08]} 39. Nd5 {[%clk 0:00:57]}  Rxb3 {[%clk 0:00:07]} 40. Ne7+ {[%clk 0:00:58]}  Kh5 {[%clk 0:00:06]} 41. Nd5 {[%clk 0:00:58]}  h6 {[%clk 0:00:04]} 42. Kg2 {[%clk 0:00:41]}  Rb2+ {[%clk 0:00:04]} 43. Kf1 {[%clk 0:00:41]}  Rb1+ {[%clk 0:00:05]} 44. Kg2 {[%clk 0:00:40]}  Rb2+ {[%clk 0:00:05]} 45. Kf1 {[%clk 0:00:40]}  Kh4 {[%clk 0:00:05]} 46. Nxf6 {[%clk 0:00:38]}  Kg3 {[%clk 0:00:04]} 47. Rd3 {[%clk 0:00:39]}  Rb1+ {[%clk 0:00:03]} 48. Ke2 {[%clk 0:00:39]}  Kg2 {[%clk 0:00:02]} 49. Nh5 {[%clk 0:00:32]}  Rb2+ {[%clk 0:00:01]} 50. Ke1 {[%clk 0:00:31]}  Rb1+ {[%clk 0:00:01]} 51. Ke2 {[%clk 0:00:31]}  Rb2+ {[%clk 0:00:01]} 52. Kd1 {[%clk 0:00:31]}  Rf2 {[%clk 0:00:02]} 53. Rb3 {[%clk 0:00:15]}  Rf1+ {[%clk 0:00:02]} 54. Ke2 {[%clk 0:00:14]}  Rf2+ {[%clk 0:00:02]} 55. Ke1 {[%clk 0:00:14]}  Rf1+ {[%clk 0:00:02]} 56. Ke2 {[%clk 0:00:14]}  Rf2+ {[%clk 0:00:03]} 57. Ke1 {[%clk 0:00:14]}  Rxf3 {[%clk 0:00:04]} 58. Rb6 {[%clk 0:00:14]}  Kg1 {[%clk 0:00:04]} 59. Rxh6 {[%clk 0:00:13]}  Rh3 {[%clk 0:00:03]} 60. Ke2 {[%clk 0:00:12]}  g4 {[%clk 0:00:03]} 61. Rh7 {[%clk 0:00:11]}  g3 {[%clk 0:00:03]} 62. Rf7 {[%clk 0:00:06]}  Rxh5 {[%clk 0:00:02]} 63. Rxf4 {[%clk 0:00:06]}  Kg2 {[%clk 0:00:02]} 64. Re4 {[%clk 0:00:06]}  Rh8 {[%clk 0:00:03]} 65. Re3 {[%clk 0:00:06]}  Rf8 {[%clk 0:00:03]} 66. Ke1 {[%clk 0:00:06]}  Kh2 {[%clk 0:00:02]} 67. Re7 {[%clk 0:00:05]}  g2 {[%clk 0:00:03]} 68. Rh7+ {[%clk 0:00:05]}  Kg1 {[%clk 0:00:03]} 69. Ke2 {[%clk 0:00:05]}  Re8+ {[%clk 0:00:04]} 70. Kf3 {[%clk 0:00:04]}  Kf1 {[%clk 0:00:04]} 71. Rb7 {[%clk 0:00:04]}  g1=Q {[%clk 0:00:03]} 72. Rb1+ {[%clk 0:00:02]}  Re1 {[%clk 0:00:04]} 73. Rxe1+ {[%clk 0:00:03]}  Kxe1 {[%clk 0:00:04]} 0-1


[Site "https://www.chess.com"]

[Event "Titled Tuesday Blitz December 27 Early 2022"]
[White "Kvaloy, Aksel Bu"]
[Black "Tworuszka, Michal"]
[WhiteFideId "1528815"]
[BlackFideId "1117858"]
[WhiteElo "2321"]
[BlackElo "2260"]
[Result "1-0"]
[Round "06"]
[TimeControl "180+2"]
[Date "2022.12.27"]
[WhiteClock "0:01:02"]
[BlackClock "0:00:02"]

1. d4 {[%clk 0:02:57]}  Nf6 {[%clk 0:02:59]} 2. c4 {[%clk 0:02:58]}  e6 {[%clk 0:02:59]} 3. g3 {[%clk 0:02:58]}  d5 {[%clk 0:02:57]} 4. Nf3 {[%clk 0:02:58]}  Bb4+ {[%clk 0:02:56]} 5. Bd2 {[%clk 0:02:57]}  Be7 {[%clk 0:02:55]} 6. Bg2 {[%clk 0:02:57]}  O-O {[%clk 0:02:54]} 7. O-O {[%clk 0:02:56]}  c6 {[%clk 0:02:53]} 8. Qc2 {[%clk 0:02:55]}  Nbd7 {[%clk 0:02:53]} 9. Bf4 {[%clk 0:02:55]}  b6 {[%clk 0:02:52]} 10. Nbd2 {[%clk 0:02:54]}  Bb7 {[%clk 0:02:51]} 11. e4 {[%clk 0:02:53]}  Rc8 {[%clk 0:02:48]} 12. Rac1 {[%clk 0:02:44]}  Nh5 {[%clk 0:02:41]} 13. Be3 {[%clk 0:02:43]}  Nhf6 {[%clk 0:02:40]} 14. e5 {[%clk 0:02:38]}  Ne8 {[%clk 0:02:40]} 15. h4 {[%clk 0:02:38]}  h6 {[%clk 0:02:29]} 16. Qb1 {[%clk 0:02:37]}  Ba6 {[%clk 0:02:23]} 17. Rfd1 {[%clk 0:02:36]}  Nc7 {[%clk 0:02:21]} 18. b3 {[%clk 0:02:33]}  b5 {[%clk 0:02:11]} 19. cxd5 {[%clk 0:02:20]}  cxd5 {[%clk 0:02:02]} 20. Qb2 {[%clk 0:02:19]}  b4 {[%clk 0:01:53]} 21. Nb1 {[%clk 0:02:12]}  Nb5 {[%clk 0:01:47]} 22. Bd2 {[%clk 0:02:09]}  Qb6 {[%clk 0:01:43]} 23. Bf1 {[%clk 0:02:02]}  f6 {[%clk 0:01:29]} 24. exf6 {[%clk 0:02:01]}  Bxf6 {[%clk 0:01:29]} 25. Be3 {[%clk 0:01:57]}  Be7 {[%clk 0:01:17]} 26. Bg2 {[%clk 0:01:56]}  Qa5 {[%clk 0:00:53]} 27. Qd2 {[%clk 0:01:54]}  Nc3 {[%clk 0:00:51]} 28. Nxc3 {[%clk 0:01:45]}  Rxc3 {[%clk 0:00:48]} 29. Ne5 {[%clk 0:01:29]}  Nxe5 {[%clk 0:00:37]} 30. dxe5 {[%clk 0:01:30]}  Rfc8 {[%clk 0:00:20]} 31. Bh3 {[%clk 0:01:18]}  Kf7 {[%clk 0:00:15]} 32. Bxh6 {[%clk 0:01:17]}  Rd3 {[%clk 0:00:14]} 33. Qf4+ {[%clk 0:01:15]}  Kg6 {[%clk 0:00:07]} 34. Rxd3 {[%clk 0:01:09]}  Rxc1+ {[%clk 0:00:04]} 35. Qxc1 {[%clk 0:01:10]}  Bxd3 {[%clk 0:00:03]} 36. Bf4 {[%clk 0:01:05]}  Bf5 {[%clk 0:00:02]} 37. g4 {[%clk 0:01:02]}  Be4 {[%clk 0:00:01]} 38. h5+ {[%clk 0:01:02]}  Kf7 {[%clk 0:00:02]} 39. g5 {[%clk 0:01:02]} 1-0


[Site "https://www.chess.com"]

[Event "Titled Tuesday Blitz December 27 Early 2022"]
[White "Lenderman, Aleksandr"]
[Black "Atakishiyev, Elmar"]
[WhiteFideId "2021285"]
[BlackFideId "13410547"]
[WhiteElo "2572"]
[BlackElo "2363"]
[Result "1-0"]
[Round "06"]
[TimeControl "180+2"]
[Date "2022.12.27"]
[WhiteClock "0:01:24"]
[BlackClock "0:00:57"]

1. Nf3 {[%clk 0:02:52]}  Nf6 {[%clk 0:02:59]} 2. c4 {[%clk 0:02:51]}  g6 {[%clk 0:02:59]} 3. Nc3 {[%clk 0:02:52]}  Bg7 {[%clk 0:02:58]} 4. e4 {[%clk 0:02:52]}  d6 {[%clk 0:02:59]} 5. d4 {[%clk 0:02:52]}  O-O {[%clk 0:02:59]} 6. Be2 {[%clk 0:02:52]}  e5 {[%clk 0:03:00]} 7. O-O {[%clk 0:02:52]}  Nc6 {[%clk 0:02:59]} 8. Be3 {[%clk 0:02:51]}  Ng4 {[%clk 0:02:56]} 9. Bg5 {[%clk 0:02:51]}  f6 {[%clk 0:02:57]} 10. Bc1 {[%clk 0:02:51]}  Nh6 {[%clk 0:02:50]} 11. dxe5 {[%clk 0:02:40]}  fxe5 {[%clk 0:02:47]} 12. Bg5 {[%clk 0:02:38]}  Qe8 {[%clk 0:02:41]} 13. Nd5 {[%clk 0:02:33]}  Qf7 {[%clk 0:02:37]} 14. h3 {[%clk 0:02:27]}  Be6 {[%clk 0:02:35]} 15. Qd2 {[%clk 0:02:27]}  Nf5 {[%clk 0:01:58]} 16. exf5 {[%clk 0:02:27]}  gxf5 {[%clk 0:01:59]} 17. Bh6 {[%clk 0:02:01]}  f4 {[%clk 0:01:41]} 18. Bxg7 {[%clk 0:01:55]}  Qxg7 {[%clk 0:01:41]} 19. Kh1 {[%clk 0:01:45]}  e4 {[%clk 0:01:40]} 20. Nh2 {[%clk 0:01:46]}  Qe5 {[%clk 0:01:33]} 21. Nxc7 {[%clk 0:01:42]}  f3 {[%clk 0:01:14]} 22. gxf3 {[%clk 0:01:42]}  Bxh3 {[%clk 0:01:07]} 23. Rg1+ {[%clk 0:01:42]}  Kh8 {[%clk 0:01:07]} 24. Nxa8 {[%clk 0:01:39]}  Nd4 {[%clk 0:01:08]} 25. Qg5 {[%clk 0:01:32]}  Nxe2 {[%clk 0:01:00]} 26. Qxe5+ {[%clk 0:01:32]}  dxe5 {[%clk 0:01:01]} 27. Nc7 {[%clk 0:01:29]}  Nxg1 {[%clk 0:01:00]} 28. Rxg1 {[%clk 0:01:30]}  exf3 {[%clk 0:01:00]} 29. Rg3 {[%clk 0:01:26]}  Bg2+ {[%clk 0:01:00]} 30. Kg1 {[%clk 0:01:26]}  e4 {[%clk 0:01:01]} 31. Nd5 {[%clk 0:01:26]}  Rc8 {[%clk 0:01:00]} 32. Ne3 {[%clk 0:01:26]}  b5 {[%clk 0:00:57]} 33. Nxg2 {[%clk 0:01:24]} 1-0


[Site "https://www.chess.com"]